bitfinex-derivatives/quotes_ETHF0:USTF0_20260120
["timestamp","ask_amount","ask_price","bid_price","bid_amount"]
[1768914707286,0.28846591,3099.7,3098.3,1.22147683]
[1768914707482,0.28846591,3099.7,3098.1,2.205]
[1768914707684,0.28846591,3099.7,3098.3,1.22147683]
[1768914709994,0.28846591,3099.7,3098.1,3.42647683]
[1768914710397,0.28846591,3099.7,3098.0,0.0029902]
[1768914710691,0.28470454,3099.4,3098.0,1.22446703]
[1768914711187,0.28470454,3099.1,3098.0,0.0029902]
[1768914711593,0.28470454,3099.1,3098.1,13.2434956]
[1768914711786,0.28470454,3099.1,3098.0,13.2464858]
[1768914713289,1.51054837,3098.9,3098.0,0.0029902]
[1768914713693,0.28907154,3098.9,3098.0,0.0029902]
[1768914715189,1.51054837,3098.9,3098.0,0.0029902]
[1768914715385,0.28907154,3098.8,3098.0,0.0029902]
[1768914717297,1.51054837,3098.6,3097.3,0.16156]
[1768914717596,0.28907154,3098.5,3097.1,1.49613736]
[1768914717900,1.22147683,3098.6,3096.8,2.205]
[1768914717901,1.51054837,3098.3,3096.8,1.22147683]
[1768914718301,0.28907154,3098.2,3097.1,13.2434956]
[1768914718701,0.28907154,3098.5,3097.2,13.2434956]
[1768914718904,0.28907154,3097.8,3096.8,0.00359676]
[1768914719195,1.22147683,3097.6,3096.8,0.00359676]
[1768914719394,0.28907154,3097.5,3096.8,0.00359676]
[1768914719595,1.22147683,3097.3,3095.9,1.22147683]
[1768914719794,0.29196865,3097.5,3096.1,13.2434956]
[1768914720092,0.29196865,3097.5,3096.6,1.22147683]
[1768914720093,0.00289711,3097.5,3096.6,1.22147683]
[1768914720297,0.00289711,3097.5,3096.7,13.2434956]
[1768914720496,0.00289711,3097.5,3097.0,13.2434956]
[1768914720799,3.229,3099.0,3097.0,13.2434956]
[1768914720800,0.28907154,3099.1,3097.2,1.22147683]
[1768914720999,0.28907154,3099.0,3097.6,1.22147683]
[1768914721193,0.28907154,3099.0,3097.4,13.2434956]
[1768914721194,0.28907154,3099.0,3097.4,0.16156]
[1768914721397,1.22147683,3098.9,3097.7,13.2434956]
[1768914721595,1.22454471,3098.9,3097.7,13.2434956]
[1768914721789,0.00306788,3098.9,3098.0,13.2434956]
[1768914721989,0.00306788,3098.9,3098.4,1.22147683]
[1768914722187,0.28907154,3099.5,3098.5,13.2434956]
[1768914722596,0.28907154,3099.5,3098.6,13.2434956]
[1768914722896,0.28907154,3099.5,3098.3,13.2434956]
[1768914723101,0.29176995,3099.5,3098.4,13.2434956]
[1768914723503,0.00269841,3099.5,3098.7,13.2434956]
[1768914723899,0.00269841,3099.5,3099.0,13.2434956]
[1768914724106,0.00269841,3099.5,3099.0,0.00311214]
[1768914724299,1.22147683,3099.8,3099.1,13.2434956]
[1768914724606,1.22147683,3099.8,3099.0,0.00311214]
[1768914724998,0.28907154,3099.9,3099.0,0.00311214]
[1768914725206,0.28907154,3099.9,3098.1,0.27466053]
[1768914725207,0.28907154,3099.7,3098.2,0.629]
[1768914725598,0.28907154,3099.7,3098.4,13.2434956]
[1768914725997,0.28907154,3099.7,3098.5,13.2434956]
[1768914726200,0.29233931,3099.7,3098.5,0.00397314]
[1768914726403,0.29233931,3099.7,3098.6,13.2434956]
[1768914726594,6.0,3099.6,3097.0,0.16158]
[1768914726792,0.16147,3099.1,3097.1,0.27466053]
[1768914726997,1.45182943,3099.0,3097.1,0.27466053]
[1768914727201,1.05093358,3098.9,3097.4,0.27466053]
[1768914727393,0.16147,3099.1,3097.5,2.208]
[1768914727592,0.16147,3099.1,3097.6,12.41310721]
[1768914727593,1.45135098,3099.0,3097.6,12.41310721]
[1768914727798,0.00418361,3099.3,3097.7,12.41310721]
[1768914728003,1.45559086,3099.2,3097.5,2.21197714]
[1768914728203,1.45140725,3099.1,3097.5,2.21197714]
[1768914728401,0.00418361,3099.2,3097.5,2.48663767]
[1768914728599,1.460584,3099.1,3097.5,2.48663767]
[1768914728803,0.00908908,3099.5,3097.6,0.27466053]
[1768914729003,1.45153836,3099.4,3097.7,0.27466053]
[1768914729203,0.00908908,3099.5,3097.7,12.68776774]
[1768914729204,1.45153836,3099.3,3097.7,12.68776774]
[1768914729406,1.45153836,3099.2,3097.8,12.41310721]
[1768914729605,1.05070188,3099.1,3097.8,12.41310721]
[1768914729910,0.01318535,3099.4,3097.9,12.41310721]
[1768914730112,0.01318535,3099.2,3097.7,2.208]
[1768914730310,1.06683654,3099.1,3097.7,2.208]
[1768914730511,0.01597346,3099.1,3097.7,14.62110721]
[1768914730703,0.01597346,3099.1,3097.9,12.41310721]
[1768914731211,0.01597346,3099.1,3098.0,12.41310721]
[1768914731412,0.01597346,3099.1,3097.9,12.41310721]
[1768914731807,0.01597346,3099.1,3097.5,0.00397714]
[1768914731808,0.1615,3098.5,3097.5,0.00397714]
[1768914732007,1.45196592,3098.4,3097.5,0.00397714]
[1768914732209,0.16731618,3098.2,3096.7,2.209]
[1768914732506,1.21249571,3098.1,3096.7,2.209]
[1768914732706,0.00579618,3097.7,3095.7,0.27466053]
[1768914732905,0.16733618,3097.7,3095.7,0.27466053]
[1768914733108,0.00579618,3097.6,3096.0,12.39313768]
[1768914733517,0.00579618,3097.6,3096.2,12.39313768]
[1768914733719,0.00579618,3097.6,3096.3,2.209]
[1768914734017,0.00579618,3097.6,3096.1,12.39313768]
[1768914734212,0.00579618,3097.6,3096.3,12.39313768]
[1768914734517,0.00579618,3097.6,3096.2,12.39313768]
[1768914734713,0.16154,3097.7,3096.2,12.39313768]
[1768914734922,0.16154,3097.7,3096.4,12.39313768]
[1768914735138,0.16154,3097.7,3096.3,12.39313768]
[1768914735413,1.0755,3097.6,3096.3,12.39313768]
[1768914735612,0.16155,3097.5,3096.4,12.39313768]
[1768914735808,0.16478626,3097.5,3096.2,2.209]
[1768914736013,0.18860159,3097.5,3096.2,2.209]
[1768914736214,0.18860159,3097.5,3096.3,12.39313768]
[1768914736909,0.16478626,3097.5,3096.3,2.21]
[1768914737105,0.02380957,3097.3,3095.7,0.00315816]
[1768914737619,0.02380957,3097.1,3095.7,0.00315816]
[1768914738412,0.16157,3097.2,3095.7,0.00315816]
[1768914738413,0.16157,3097.2,3096.0,12.39313768]
[1768914738613,0.16157,3097.2,3095.9,12.39313768]
[1768914739110,0.16157,3097.2,3096.0,12.39313768]
[1768914739311,0.16157,3097.2,3095.9,12.39313768]
[1768914739712,0.16157,3097.2,3096.0,12.39313768]
[1768914739902,0.16157,3097.2,3096.1,12.39313768]
[1768914740108,0.00323626,3097.5,3095.9,0.27466053]
[1768914740305,0.00323626,3097.5,3096.3,12.39313768]
[1768914740712,0.00323626,3097.5,3096.5,12.39313768]
[1768914741008,0.00323626,3097.5,3096.3,12.39313768]
[1768914741210,0.00323626,3097.5,3096.3,14.60413768]
[1768914741412,0.00323626,3097.5,3096.6,12.39313768]
[1768914741612,0.00323626,3097.5,3096.7,12.39313768]
[1768914742007,0.00323626,3097.5,3096.9,12.39313768]
[1768914742209,0.00323626,3097.5,3097.0,12.39313768]
[1768914742504,1.0755,3097.6,3097.0,12.39313768]
[1768914742704,1.0755,3097.6,3097.3,12.39313768]
[1768914742907,0.5116512,3097.6,3097.0,12.39313768]
[1768914743107,0.5116512,3097.6,3097.2,12.39313768]
[1768914743308,0.51560868,3097.6,3097.2,12.39313768]
[1768914743505,0.51560868,3097.6,3097.4,12.39313768]
[1768914743709,0.51560868,3097.6,3097.2,12.39313768]
[1768914744219,0.51560868,3097.6,3097.4,12.39313768]
[1768914744518,0.51560868,3097.6,3097.2,12.39313768]
[1768914745018,0.51560868,3097.6,3097.4,12.39313768]
[1768914745209,0.51560868,3097.6,3097.3,12.39313768]
[1768914745611,0.51560868,3097.6,3097.5,12.39313768]
[1768914745912,0.51560868,3097.6,3097.0,2.214]
[1768914745913,0.51560868,3097.6,3097.1,12.39313768]
[1768914746113,0.51560868,3097.6,3097.4,12.39313768]
[1768914746613,0.51560868,3097.6,3097.5,12.39313768]
[1768914746814,0.51560868,3097.6,3097.4,12.39313768]
[1768914747309,0.51560868,3097.6,3097.5,12.39313768]
[1768914748008,0.51560868,3097.6,3097.5,11.72429365]
[1768914748807,0.51560868,3097.6,3096.7,2.217]
[1768914749515,0.51560868,3097.6,3096.4,0.27466053]
[1768914749713,0.16156,3097.5,3095.9,0.30808548]
[1768914749917,0.16156,3097.5,3096.0,2.217]
[1768914751522,0.16156,3097.5,3096.1,0.30808548]
[1768914752318,0.16156,3097.5,3096.2,2.52508548]
[1768914753321,0.16156,3097.5,3096.3,2.52408548]
[1768914755110,0.16156,3097.5,3096.4,0.30808548]
[1768914758625,0.51560868,3097.6,3096.4,0.30808548]
[1768914759527,0.51560868,3097.6,3095.7,0.00315816]
[1768914759528,0.16157,3097.2,3095.7,0.00315816]
[1768914759728,0.16158,3097.0,3095.7,0.00315816]
[1768914759920,0.1616,3096.7,3095.7,0.00315816]
[1768914760128,0.10917305,3097.2,3095.7,0.00315816]
[1768914760325,1.44861739,3097.1,3095.7,0.00315816]
[1768914760627,1.44861739,3097.0,3095.7,0.00315816]
[1768914760825,0.27074305,3097.2,3095.7,0.00315816]
[1768914761026,1.44934092,3097.1,3095.7,0.00315816]
[1768914761226,1.44934092,3097.0,3095.7,0.00315816]
[1768914761427,1.44934092,3096.9,3095.7,0.00315816]
[1768914761627,0.27074305,3097.2,3095.7,0.00315816]
[1768914761825,1.45109511,3097.1,3095.7,0.00315816]
[1768914762022,1.45109511,3097.0,3095.7,0.00315816]
[1768914762227,1.45109511,3096.9,3095.7,0.00315816]
[1768914762428,0.28578064,3097.1,3095.7,0.00315816]
[1768914762630,1.45102074,3097.0,3095.7,0.00315816]
[1768914762833,1.45102074,3096.9,3095.7,0.00315816]
[1768914763022,0.28578064,3097.1,3095.7,0.00315816]
[1768914763218,1.45101445,3097.0,3095.7,0.00315816]
[1768914763418,0.28578064,3097.1,3095.7,0.00315816]
[1768914763627,1.4506482,3097.0,3095.7,0.00315816]
[1768914763829,0.28578064,3097.1,3095.7,0.00315816]
[1768914764028,0.16158,3097.1,3095.7,0.32482413]
[1768914764732,0.51560868,3097.6,3095.7,0.32482413]
[1768914764931,1.4501768,3097.5,3095.7,0.32482413]
[1768914765144,1.4501768,3097.4,3095.7,0.32482413]
[1768914765327,0.51560868,3097.6,3095.7,0.48647413]
[1768914765533,1.44982645,3097.5,3095.8,0.32166597]
[1768914765732,1.44982645,3097.4,3095.8,0.32166597]
[1768914765927,0.67715868,3097.6,3095.8,0.32166597]
[1768914766128,1.44983219,3097.5,3095.8,0.32166597]
[1768914766429,0.67715868,3097.6,3095.8,0.32166597]
[1768914766728,0.67715868,3097.6,3095.9,0.32166597]
[1768914766926,0.51560868,3097.6,3095.9,0.48330597]
[1768914767126,0.51560868,3097.6,3095.7,0.00315816]
[1768914767127,0.51560868,3097.6,3096.0,0.32166597]
[1768914767325,0.51560868,3097.6,3096.2,0.32166597]
[1768914768936,0.51560868,3097.6,3096.4,0.32166597]
[1768914769437,0.51560868,3097.6,3096.5,5.445]
[1768914770437,0.00395748,3097.6,3096.5,5.445]
[1768914770837,0.16152,3098.1,3096.6,2.53466597]
[1768914771029,0.40059693,3098.0,3096.6,2.53466597]
[1768914771226,0.31619347,3098.1,3096.7,2.213]
[1768914771429,1.45009889,3098.0,3096.7,2.213]
[1768914771630,0.40055316,3097.9,3096.7,2.213]
[1768914771830,0.00233675,3097.9,3096.6,2.53466597]
[1768914772036,0.15701022,3097.9,3096.4,2.213]
[1768914772833,1.60793668,3097.8,3096.2,0.32166597]
[1768914773035,0.15772743,3097.8,3096.3,2.213]
[1768914773334,0.16282067,3097.7,3096.2,0.32166597]
[1768914773932,0.85582067,3097.7,3096.2,0.32166597]
[1768914774531,0.16652234,3097.4,3095.7,0.00315816]
[1768914774733,0.693,3097.7,3095.7,0.00315816]
[1768914774734,0.16652234,3097.2,3095.7,0.00315816]
[1768914777638,0.17205797,3097.0,3095.7,0.00315816]
[1768914778039,0.33363797,3097.0,3095.7,0.00315816]
[1768914778939,1.62159085,3096.9,3095.7,0.00315816]
[1768914779244,0.33401049,3096.8,3095.7,0.00315816]
[1768914780034,0.33639111,3096.7,3095.7,0.00315816]
[1768914780429,0.1616,3096.7,3095.7,0.00315816]
[1768914781029,0.34115382,3096.7,3095.7,0.00315816]
[1768914781231,0.34115382,3096.6,3095.7,0.00315816]
[1768914781435,0.17639566,3096.3,3094.4,2.54842788]
[1768914781642,0.17639566,3096.3,3094.4,0.33742788]
[1768914781842,0.17639566,3096.3,3094.5,5.443]
[1768914782235,0.33801566,3096.3,3094.6,0.33742788]
[1768914782437,0.16162,3096.3,3094.6,0.33742788]
[1768914783437,0.16162,3096.3,3094.5,0.16522638]
[1768914783438,0.16162,3096.3,3094.8,0.33742788]
[1768914783637,0.16162,3096.3,3094.8,2.54842788]
[1768914784248,0.16162,3096.3,3094.8,2.54742788]
[1768914785042,0.33385452,3095.6,3094.5,0.00351638]
[1768914785244,0.17441188,3095.5,3094.5,0.00351638]
[1768914785436,0.17441188,3095.3,3094.5,0.00351638]
[1768914785635,0.16168,3095.2,3094.5,0.00351638]
[1768914785840,0.16168,3095.1,3094.5,0.00351638]
[1768914786235,0.00360721,3095.6,3093.3,0.65793059]
[1768914786236,0.16171,3094.6,3093.3,0.65793059]
[1768914786546,0.16168,3095.1,3093.4,2.21]
[1768914786845,0.49059556,3095.1,3093.4,2.21]
[1768914787344,0.32891556,3095.0,3093.4,2.21350404]
[1768914787647,0.16168,3095.1,3093.4,2.21350404]
[1768914788340,0.16168,3095.1,3093.5,0.33742788]
[1768914788944,0.32891556,3095.4,3093.5,0.33742788]
[1768914789843,0.16168,3095.2,3093.5,0.33742788]
[1768914790044,0.32891556,3094.9,3093.4,0.00350404]
[1768914790443,0.16168,3095.0,3093.4,0.34093192]
[1768914790943,0.32891556,3094.9,3093.4,0.00350404]
[1768914791144,0.00360721,3095.6,3093.4,0.00350404]
[1768914791145,0.49061556,3094.7,3093.4,0.00350404]
[1768914791834,2.56665865,3094.6,3090.9,0.1619]
[1768914792038,0.00710665,3094.4,3091.5,0.33742788]
[1768914792233,0.00710665,3094.1,3091.7,0.33742788]
[1768914792546,0.00710665,3094.1,3091.9,0.33742788]
[1768914792733,0.00710665,3094.1,3091.9,0.33995383]
[1768914792938,0.00710665,3094.1,3092.3,0.33742788]
[1768914793537,0.01294275,3094.8,3092.6,0.33742788]
[1768914793743,0.01294275,3094.7,3092.6,0.33742788]
[1768914794144,0.01294275,3094.7,3092.6,13.62712677]
[1768914794447,0.01294275,3094.7,3092.8,0.33742788]
[1768914794747,0.01294275,3094.7,3092.9,0.33742788]
[1768914795164,0.00812772,3095.3,3093.2,13.62712677]
[1768914795444,0.00812772,3095.3,3093.2,2.40942788]
[1768914796647,0.00812772,3095.3,3093.2,0.33742788]
[1768914796945,0.02132364,3095.2,3093.2,0.33742788]
[1768914797946,0.02684123,3095.1,3093.2,0.33742788]
[1768914799841,0.02684123,3095.1,3092.5,0.33742788]
[1768914799842,0.16171,3094.5,3092.5,0.33742788]
[1768914800234,0.16171,3094.5,3092.9,0.33742788]
[1768914800434,0.04552642,3095.1,3093.0,0.33742788]
[1768914800739,1.09560627,3095.0,3093.0,0.33742788]
[1768914800941,0.16168,3095.0,3093.1,0.33742788]
[1768914801248,0.16169,3094.9,3093.2,0.33742788]
[1768914801642,0.16169,3094.9,3093.3,0.33742788]
[1768914802647,0.16169,3094.8,3093.3,0.33742788]
[1768914802848,0.1617,3094.7,3093.3,0.33742788]
[1768914803244,0.1617,3094.7,3093.4,13.67454869]
[1768914803444,0.1617,3094.7,3093.4,0.3848498]
[1768914803647,0.1617,3094.7,3093.4,13.67454869]
[1768914803848,0.1617,3094.7,3093.6,13.28969889]
[1768914804350,0.1617,3094.7,3093.7,13.28969889]
[1768914804548,0.1617,3094.7,3093.6,13.28969889]
[1768914805047,0.1617,3094.7,3093.7,13.28969889]
[1768914805243,0.1617,3094.7,3093.6,13.28969889]
[1768914805641,0.1617,3094.7,3093.7,13.28969889]
[1768914805856,0.1617,3094.7,3093.6,13.28969889]
[1768914806153,0.1617,3094.7,3093.4,2.5948498]
[1768914806448,0.1617,3094.7,3093.6,13.28969889]
[1768914806747,0.16167,3095.3,3093.8,13.28969889]
[1768914806947,1.10012514,3095.2,3093.6,0.3848498]
[1768914807144,0.16167,3095.3,3093.7,0.3848498]
[1768914807343,1.10028763,3095.2,3093.7,0.3848498]
[1768914807541,0.16167,3095.3,3093.7,0.3848498]
[1768914807738,1.10095687,3095.2,3093.9,13.28969889]
[1768914807949,1.10095263,3095.1,3094.0,13.28969889]
[1768914808145,0.16167,3095.3,3093.9,13.28969889]
[1768914808347,1.1011036,3095.2,3094.0,13.28969889]
[1768914808546,0.16167,3095.3,3094.1,13.28969889]
[1768914808851,0.16167,3095.3,3094.1,13.29227602]
[1768914808852,1.10179726,3095.2,3094.1,13.29227602]
[1768914809053,0.16167,3095.3,3094.2,13.28969889]
[1768914809255,0.16167,3095.3,3094.4,13.28969889]
[1768914809455,0.16167,3095.3,3094.6,13.28969889]
[1768914809650,0.00360721,3095.6,3094.7,13.28969889]
[1768914809860,1.10244461,3095.5,3094.6,13.28969889]
[1768914810049,0.00360721,3095.6,3094.6,13.28969889]
[1768914810244,1.10244481,3095.5,3094.7,13.28969889]
[1768914810457,0.00360721,3095.6,3094.6,13.28969889]
[1768914810656,1.10228064,3095.5,3094.6,13.28969889]
[1768914810844,0.00360721,3095.6,3094.7,13.28969889]
[1768914811258,0.00360721,3095.6,3094.8,13.28969889]
[1768914811457,0.00360721,3095.6,3094.9,13.28969889]
[1768914811956,0.00360721,3095.6,3095.1,13.28969889]
[1768914812154,0.00360721,3095.6,3095.2,13.28969889]
[1768914812351,0.11167161,3096.5,3094.9,2.213]
[1768914812352,0.16162,3096.3,3094.9,2.213]
[1768914812559,1.10332977,3096.2,3094.9,2.5978498]
[1768914812755,1.10332977,3096.1,3095.0,2.083]
[1768914813052,1.10332977,3096.0,3095.0,2.083]
[1768914813260,0.12126053,3096.3,3095.0,2.083]
[1768914813451,0.16163,3096.1,3094.9,2.213]
[1768914813750,1.10373938,3096.0,3094.9,2.213]
[1768914813949,1.10373938,3096.0,3094.9,15.50269889]
[1768914814152,1.10373938,3096.0,3094.9,2.5978498]
[1768914814361,0.16163,3096.1,3095.0,2.213]
[1768914814663,0.16163,3096.1,3095.1,15.50269889]
[1768914814863,0.16163,3096.1,3095.1,2.213]
[1768914815355,0.16163,3096.1,3095.2,13.28969889]
[1768914816663,0.16163,3096.1,3095.1,2.213]
[1768914816962,0.16163,3096.1,3095.2,13.28969889]
[1768914817453,0.16163,3096.1,3095.4,13.28969889]
[1768914817857,0.16163,3096.1,3095.6,13.28969889]
[1768914818058,0.16163,3096.1,3095.5,13.28969889]
[1768914818257,0.16163,3096.1,3095.1,2.213]
[1768914818258,0.16163,3096.1,3095.2,0.3848498]
[1768914818563,0.16163,3096.1,3095.6,13.28969889]
[1768914818762,0.16163,3096.1,3095.9,13.28969889]
[1768914818965,0.16163,3096.1,3095.7,13.28969889]
[1768914819368,0.16163,3096.1,3095.9,13.28969889]
[1768914819663,0.16163,3096.1,3095.7,13.28969889]
[1768914819858,0.29619649,3097.4,3095.9,13.28969889]
[1768914820061,0.16162,3096.2,3095.7,2.217]
[1768914820457,0.16162,3096.2,3095.9,13.28969889]
[1768914820964,0.16418875,3096.2,3096.0,13.28969889]
[1768914821164,0.16418875,3096.2,3096.1,13.28969889]
[1768914821463,0.16418875,3096.2,3095.7,13.28969889]
[1768914821664,0.16418875,3096.2,3095.9,13.28969889]
[1768914822154,0.16418875,3096.2,3096.1,13.28969889]
[1768914822359,0.16418875,3096.2,3095.9,13.28969889]
[1768914823162,0.16163,3096.0,3095.5,2.219]
[1768914823560,0.16163,3096.0,3095.7,12.65582102]
[1768914823760,0.16163,3096.0,3095.8,12.65582102]
[1768914824069,0.16163,3096.0,3095.6,12.65582102]
[1768914824566,0.16163,3096.0,3095.8,12.65582102]
[1768914824864,0.16163,3096.0,3095.6,12.65582102]
[1768914825468,0.16163,3096.0,3095.8,12.65582102]
[1768914825660,0.16163,3096.0,3095.6,1.95826134]
[1768914826070,0.16163,3096.0,3095.0,0.43433592]
[1768914826262,0.16163,3096.0,3095.1,2.221]
[1768914826771,0.16163,3096.0,3095.0,0.43433592]
[1768914827066,0.16163,3096.0,3095.1,2.221]
[1768914828169,1.1256,3095.9,3095.1,2.221]
[1768914829870,1.1256,3095.9,3095.0,0.43433592]
[1768914830072,1.1256,3095.9,3095.1,2.22]
[1768914830268,1.1256,3095.9,3095.1,2.65433592]
[1768914830965,0.16163,3096.0,3095.2,0.43433592]
[1768914831172,0.00256875,3096.2,3095.2,0.43433592]
[1768914831967,0.16163,3096.0,3095.2,0.43433592]
[1768914832167,0.16163,3096.0,3095.3,2.22]
[1768914833275,0.00256875,3096.2,3095.3,2.22]
[1768914838881,0.00256875,3096.2,3094.7,0.44527997]
[1768914839081,0.00256875,3096.2,3094.8,2.66327997]
[1768914839282,0.00256875,3096.2,3094.8,5.89627997]
[1768914839777,0.00256875,3096.2,3094.1,0.16430713]
[1768914839986,1.50416066,3096.1,3094.3,0.44527997]
[1768914840193,1.10379705,3096.0,3094.3,0.44527997]
[1768914840479,1.10379705,3095.9,3094.3,0.44527997]
[1768914840676,1.50427481,3095.8,3094.1,0.00257713]
[1768914840882,1.22677096,3095.4,3094.1,2.21957713]
[1768914841385,1.10372906,3095.3,3094.1,0.00257713]
[1768914841591,0.16167,3095.2,3094.1,0.00257713]
[1768914842278,1.22677096,3094.7,3094.1,0.00257713]
[1768914842478,1.22677096,3094.7,3093.4,0.44527997]
[1768914842683,1.22677096,3095.0,3093.4,0.44527997]
[1768914842883,1.10322315,3094.9,3093.4,0.44527997]
[1768914843082,0.16168,3095.1,3093.4,0.44527997]
[1768914843284,1.26489171,3095.0,3093.4,0.44527997]
[1768914843587,1.26386455,3094.9,3093.4,2.66507182]
[1768914843780,0.16169,3094.9,3093.4,2.66507182]
[1768914844184,0.16169,3094.9,3093.5,0.44527997]
[1768914845882,0.16166,3095.6,3093.5,0.44527997]
[1768914846084,1.49817947,3095.5,3093.5,0.44527997]
[1768914846283,1.49817947,3095.4,3093.5,0.44527997]
[1768914846484,1.09886142,3095.3,3093.5,0.44527997]
[1768914846686,1.09886142,3095.2,3093.5,0.44527997]
[1768914846989,0.16166,3095.6,3093.5,0.44527997]
[1768914847189,1.65932681,3095.5,3093.5,0.44527997]
[1768914847393,1.09848708,3095.4,3093.5,0.44527997]
[1768914847597,1.09848708,3095.3,3093.5,0.44527997]
[1768914847885,0.16166,3095.5,3093.6,0.44527997]
[1768914848295,0.6125173,3096.2,3093.8,0.44527997]
[1768914848485,1.65900416,3096.1,3093.8,0.44527997]
[1768914848792,1.49737416,3096.0,3093.8,0.44527997]
[1768914848991,1.54659672,3095.9,3093.8,0.44527997]
[1768914849291,1.09826817,3095.8,3094.0,0.44527997]
[1768914849491,0.44832855,3095.8,3094.0,0.44527997]
[1768914849886,0.44832855,3095.8,3094.0,2.66127997]
[1768914850086,1.09781947,3095.7,3094.0,2.66127997]
[1768914850386,0.44832855,3095.8,3094.0,0.44527997]
[1768914850689,1.25949293,3095.7,3094.0,0.44527997]
[1768914850886,0.16165,3095.7,3094.0,0.44527997]
[1768914851290,0.44832855,3095.8,3094.0,0.44527997]
[1768914851491,0.16166,3095.5,3094.0,2.66127997]
[1768914852080,0.16167,3095.4,3093.8,2.215]
[1768914852487,0.16167,3095.4,3093.9,0.44527997]
[1768914856795,0.00256875,3096.2,3093.9,0.44527997]
[1768914856982,1.49657047,3096.1,3093.9,0.44527997]
[1768914857187,1.49657047,3096.0,3093.9,0.44527997]
[1768914857386,1.49657047,3095.9,3093.9,0.44527997]
[1768914857591,1.09732417,3095.8,3093.9,0.44527997]
[1768914857789,0.4508973,3096.2,3093.9,0.44527997]
[1768914857992,1.49670183,3096.1,3093.9,0.44527997]
[1768914858198,1.49670183,3096.0,3093.9,0.44527997]
[1768914858398,1.49673319,3095.9,3093.9,0.44527997]
[1768914858588,1.09741947,3095.8,3093.9,0.44527997]
[1768914860889,1.09741947,3095.8,3094.1,0.44527997]
[1768914861296,1.25905947,3095.8,3094.1,0.44527997]
[1768914861496,0.16164,3095.8,3094.2,5.447]
[1768914861889,0.16165,3095.7,3094.3,2.214]
[1768914862090,0.60997855,3095.7,3094.1,2.65927997]
[1768914864998,0.57925765,3095.6,3094.1,2.65927997]
[1768914868999,0.57925765,3095.6,3094.0,0.55878367]
[1768914869197,1.10081194,3095.5,3094.0,0.55878367]
[1768914869396,0.57925765,3095.6,3094.0,0.55878367]
[1768914869597,1.10083817,3095.5,3094.0,0.55878367]
[1768914869902,0.57925765,3095.6,3094.0,0.55878367]
[1768914870101,1.10083832,3095.5,3094.0,0.55878367]
[1768914870311,0.57925765,3095.6,3094.0,0.55878367]
[1768914870503,1.10086157,3095.5,3094.0,0.55878367]
[1768914870707,0.57925765,3095.6,3094.0,0.55878367]
[1768914870909,0.16418875,3096.2,3094.8,0.55878367]
[1768914871307,0.16418875,3096.2,3093.5,4.55136325]
[1768914871308,0.57925765,3096.0,3094.5,2.075]
[1768914871511,1.50096587,3095.9,3094.2,5.444]
[1768914871708,1.10048332,3095.8,3094.3,0.55878367]
[1768914871908,0.16163,3096.1,3094.4,0.55878367]
[1768914872105,1.49592149,3096.0,3094.4,0.55878367]
[1768914872302,0.00256875,3096.2,3094.4,0.55878367]
[1768914872508,0.00256875,3096.2,3094.3,1.38827045]
[1768914872509,0.00256875,3096.2,3094.8,0.55878367]
[1768914872911,0.5818264,3096.2,3094.5,2.37271]
[1768914873608,1.67437878,3096.1,3094.4,0.55878367]
[1768914873811,0.57925765,3096.1,3094.5,2.211]
[1768914875315,0.57925765,3096.1,3094.5,2.76978367]
[1768914875818,0.57925765,3096.1,3094.5,0.55878367]
[1768914876117,0.57925765,3096.1,3094.6,0.55878367]
[1768914876417,1.09380903,3096.7,3094.6,0.55878367]
[1768914876616,1.49560618,3096.6,3094.6,0.55878367]
[1768914876819,1.49560618,3096.5,3094.6,0.55878367]
[1768914877019,1.49560618,3096.4,3094.6,0.55878367]
[1768914877219,1.49560618,3096.3,3094.6,0.55878367]
[1768914877422,1.49560618,3096.2,3094.6,0.55878367]
[1768914877615,1.49560618,3096.1,3094.6,0.55878367]
[1768914877815,0.16508346,3096.3,3094.6,0.55878367]
[1768914878014,1.4957854,3096.2,3094.6,0.55878367]
[1768914878216,1.4957854,3096.1,3094.6,0.55878367]
[1768914878416,0.16508346,3096.3,3094.6,0.55878367]
[1768914878723,1.49571713,3096.2,3094.6,0.55878367]
[1768914878916,0.57925765,3095.9,3094.2,0.55878367]
[1768914879119,1.49571713,3095.8,3094.2,0.55878367]
[1768914879320,1.49571713,3095.7,3094.2,0.55878367]
[1768914879624,1.49571713,3095.6,3094.2,0.55878367]
[1768914879923,0.16164,3095.8,3094.2,0.55878367]
[1768914880127,1.49564259,3095.7,3094.2,0.55878367]
[1768914880421,1.4956422,3095.6,3094.2,0.55878367]
[1768914880719,0.16164,3095.8,3094.2,0.55878367]
[1768914880914,1.49563933,3095.7,3094.2,0.55878367]
[1768914881116,1.49563933,3095.6,3094.2,0.55878367]
[1768914881322,0.16165,3095.7,3094.2,0.55878367]
[1768914881522,1.49563908,3095.6,3094.2,0.55878367]
[1768914881723,0.16165,3095.7,3094.2,0.55878367]
[1768914881925,1.49564071,3095.6,3094.2,0.55878367]
[1768914882124,0.16165,3095.7,3094.2,0.55878367]
[1768914882325,1.49565504,3095.6,3094.2,0.55878367]
[1768914882524,0.16165,3095.7,3094.2,0.55878367]
[1768914882725,1.49573979,3095.6,3094.2,0.55878367]
[1768914882916,0.16165,3095.7,3094.2,0.55878367]
[1768914883117,1.49581782,3095.6,3094.2,0.55878367]
[1768914883317,0.16165,3095.7,3094.2,0.55878367]
[1768914883517,1.49588388,3095.6,3094.2,0.55878367]
[1768914883824,0.16165,3095.7,3094.2,0.55878367]
[1768914884023,1.49587906,3095.6,3094.2,0.55878367]
[1768914884222,0.16165,3095.7,3094.2,0.55878367]
[1768914884522,1.1397,3095.5,3094.2,0.55878367]
[1768914885019,1.1397,3095.5,3093.7,0.82198796]
[1768914885725,1.1397,3095.5,3093.8,0.66023796]
[1768914886518,1.30136,3095.5,3093.8,0.66023796]
[1768914888421,1.30136,3095.5,3094.2,0.66023796]
[1768914889116,1.1397,3095.5,3094.2,0.66023796]
[1768914889829,1.1397,3095.5,3094.2,2.86823796]
[1768914890631,1.1397,3095.5,3094.2,0.66023796]
[1768914894031,1.30136,3095.5,3094.2,0.66023796]
[1768914906231,1.09478568,3095.4,3094.2,0.66023796]
[1768914906433,1.30136,3095.5,3094.2,0.66023796]
[1768914906731,1.09478639,3095.4,3094.2,0.66023796]
[1768914906928,1.30136,3095.5,3094.2,0.66023796]
[1768914907137,1.49580537,3095.4,3094.2,0.66023796]
[1768914907441,1.09501924,3095.3,3093.9,2.204]
[1768914907640,1.30136,3095.5,3093.9,2.204]
[1768914907842,1.49604231,3095.4,3093.9,2.204]
[1768914908033,1.49604231,3095.3,3093.9,2.204]
[1768914908233,1.4969454,3095.2,3093.9,2.204]
[1768914908438,1.30136,3095.5,3093.9,2.204]